[Event "2. kolo JP družstev 2019/2020"]
[Site "Jesenik, Czech Republic"]
[Date "2019.10.19"]
[Round "1.1"]
[White "Taborsky, Bedrich JES_C"]
[Black "Cechacek, Miroslav SKO"]
[Result "0-1"]
[TimeControl "3600+10"]
[WhiteElo "1625"]
[BlackElo "1647"]

1. e4 {[%clk 01:00:20]} c5 {[%clk 01:00:14]} {[%emt 00:00:06]} 2. f4 {[%clk
01:00:01]} {[%emt 00:00:28]} Nc6 {[%clk 01:00:16]} {[%emt 00:00:08]} 3. Nf3
{[%clk 01:00:02]} {[%emt 00:00:10]} Nf6 {[%clk 00:59:51]} {[%emt 00:00:35]} 4.
e5 {[%clk 01:00:04]} {[%emt 00:00:07]} Nh5 {[%clk 00:58:25]} {[%emt 00:01:35]}
5. d4 {[%clk 00:59:54]} {[%emt 00:00:22]} cxd4 {[%clk 00:57:35]} {[%emt
00:01:00]} 6. Nxd4 {[%clk 00:59:49]} {[%emt 00:00:15]} Nxd4 {[%clk 00:57:38]}
{[%emt 00:00:06]} 7. Qxd4 {[%clk 00:59:42]} {[%emt 00:00:17]} g6 {[%clk
00:55:53]} {[%emt 00:01:56]} 8. e6 {[%clk 00:59:43]} {[%emt 00:00:09]} Bg7
{[%clk 00:55:50]} {[%emt 00:00:12]} 9. exf7+ {[%emt 00:00:20]} Kxf7 {[%clk
00:55:28]} {[%emt 00:00:19]} 10. Bc4+ {[%clk 00:59:49]} {[%emt 00:00:07]} e6
{[%clk 00:55:07]} {[%emt 00:00:31]} 11. Qd2 {[%clk 00:59:15]} {[%emt 00:00:44]}
Qb6 {[%clk 00:54:57]} {[%emt 00:00:20]} 12. c3 {[%clk 00:58:52]} {[%emt
00:00:33]} Rf8 {[%clk 00:54:08]} {[%emt 00:00:59]} 13. Na3 {[%clk 00:58:45]}
{[%emt 00:00:17]} Kg8 {[%clk 00:53:44]} {[%emt 00:00:34]} 14. Rf1 {[%clk
00:58:29]} {[%emt 00:00:26]} a6 {[%clk 00:51:25]} {[%emt 00:02:30]} 15. Be2
{[%clk 00:57:23]} {[%emt 00:01:14]} Nf6 {[%clk 00:51:17]} {[%emt 00:00:19]} 16.
Nc4 {[%emt 00:00:05]} Qc7 {[%emt 00:02:34]} 17. Nd6 {[%clk 00:53:25]} {[%emt
00:00:12]} Nd5 {[%clk 00:51:27]} 18. Nxc8 {[%clk 00:52:50]} {[%emt 00:01:25]}
Raxc8 {[%clk 00:51:36]} 19. c4 {[%clk 00:51:57]} {[%emt 00:01:42]} Nb6 {[%clk
00:50:53]} {[%emt 00:00:52]} 20. Rf3 {[%clk 00:51:10]} {[%emt 00:00:58]} Nxc4
{[%clk 00:50:25]} {[%emt 00:00:37]} 21. Bxc4 {[%clk 00:50:56]} {[%emt
00:00:04]} Qxc4 {[%clk 00:50:34]} 22. Qxd7 {[%clk 00:51:02]} {[%emt 00:00:25]}
Rfd8 {[%clk 00:49:40]} {[%emt 00:01:03]} 23. Qxb7 {[%clk 00:50:37]} {[%emt
00:00:23]} Qd4 {[%clk 00:49:00]} {[%emt 00:01:04]} 24. Be3 {[%clk 00:50:30]}
{[%emt 00:00:16]} Qxb2 {[%clk 00:46:13]} {[%emt 00:02:57]} 25. Qxb2 {[%clk
00:49:37]} {[%emt 00:01:00]} Bxb2 {[%clk 00:46:21]} {[%emt 00:00:05]} 26. Rb1
{[%clk 00:47:28]} {[%emt 00:00:02]} Rc2 {[%clk 00:44:51]} {[%emt 00:03:55]} 27.
Kf1 {[%clk 00:45:04]} {[%emt 00:00:24]} Rd3 {[%clk 00:45:00]} 28. Rf2 {[%clk
00:43:20]} {[%emt 00:02:54]} Rxf2+ {[%clk 00:43:53]} {[%emt 00:02:31]} 29. Kxf2
{[%clk 00:43:21]} {[%emt 00:00:03]} Bd4 {[%clk 00:43:33]} {[%emt 00:00:35]} 30.
Rb3 {[%emt 00:00:35]} Bxe3+ {[%emt 00:00:22]} 31. Ke2 {[%emt 00:00:02]} Rxb3
{[%emt 00:00:02]} 32. axb3 {[%emt 00:00:02]} Bxf4 {[%emt 00:00:05]} 33. g3
{[%emt 00:00:01]} Bc7 {[%emt 00:00:03]} 34. Kd3 {[%emt 00:00:04]} Kf7 {[%emt
00:00:07]} 35. Kc4 {[%emt 00:00:02]} Ke7 {[%emt 00:00:07]} 36. Kc5 {[%emt
00:00:02]} Kd7 {[%emt 00:00:05]} 37. b4 {[%emt 00:00:03]} h5 {[%emt 00:00:06]}
38. Kd4 {[%emt 00:00:03]} Kd6 {[%emt 00:00:01]} 39. Ke4 {[%emt 00:00:02]} e5
{[%emt 00:00:07]} 40. h3 {[%emt 00:00:02]} Ke6 {[%emt 00:00:04]} 41. g4 {[%clk
00:40:49]} {[%emt 00:00:01]} h4 {[%clk 00:43:33]} 0-1

[Event "2. kolo JP družstev 2019/2020"]
[Site "Jesenik, Czech Republic"]
[Date "2019.10.19"]
[Round "1.2"]
[White "Macik, Milan SKO"]
[Black "Koritak, Pavel st. JES_C"]
[Result "1/2-1/2"]
[TimeControl "3600+10"]
[WhiteElo "1570"]
[BlackElo "1501"]

1. d4 {[%clk 01:00:14]} {[%emt 00:00:05]} Nf6 {[%emt 00:00:31]} 2. c4 {[%clk
01:00:06]} e6 {[%clk 00:59:48]} {[%emt 00:00:29]} 3. Nf3 {[%clk 00:59:46]}
{[%emt 00:00:30]} h6 {[%clk 00:58:10]} {[%emt 00:01:48]} 4. Nc3 {[%clk
00:59:33]} {[%emt 00:00:23]} c6 {[%clk 00:57:30]} {[%emt 00:00:50]} 5. a3
{[%clk 00:58:31]} {[%emt 00:01:12]} d5 {[%clk 00:57:05]} {[%emt 00:00:35]} 6.
e3 {[%clk 00:57:18]} {[%emt 00:01:24]} Bd6 {[%clk 00:56:22]} {[%emt 00:00:52]}
7. Bd3 {[%clk 00:56:21]} {[%emt 00:01:06]} Nbd7 {[%clk 00:56:10]} {[%emt
00:00:23]} 8. O-O {[%clk 00:54:33]} {[%emt 00:01:58]} O-O {[%emt 00:06:48]} 9.
Bd2 {[%emt 00:00:39]} e5 {[%clk 00:47:16]} {[%emt 00:01:38]} 10. dxe5 {[%clk
00:53:03]} {[%emt 00:01:40]} Nxe5 {[%clk 00:46:24]} {[%emt 00:01:02]} 11. Nxe5
{[%clk 00:52:10]} {[%emt 00:01:02]} Bxe5 {[%clk 00:46:33]} {[%emt 00:00:02]} 12.
cxd5 {[%clk 00:51:21]} {[%emt 00:00:58]} Nxd5 {[%clk 00:45:43]} {[%emt
00:01:00]} 13. Nxd5 {[%clk 00:41:52]} {[%emt 00:09:39]} Qxd5 {[%clk 00:44:54]}
{[%emt 00:00:59]} 14. Bc3 {[%clk 00:41:24]} {[%emt 00:00:39]} Bxc3 {[%clk
00:43:43]} {[%emt 00:01:20]} 15. bxc3 {[%clk 00:41:23]} {[%emt 00:00:11]} Be6
{[%clk 00:43:52]} {[%emt 00:00:03]} 16. Be2 {[%clk 00:40:22]} {[%emt 00:01:08]}
Qe4 {[%clk 00:42:26]} {[%emt 00:01:37]} 17. Bf3 {[%clk 00:37:19]} {[%emt
00:03:13]} Qe5 {[%clk 00:42:10]} {[%emt 00:00:26]} 18. Qc2 {[%clk 00:34:37]}
{[%emt 00:02:53]} Rad8 {[%clk 00:41:06]} {[%emt 00:01:14]} 19. Rfd1 {[%clk
00:33:50]} {[%emt 00:00:56]} Qc7 {[%clk 00:34:42]} {[%emt 00:06:34]} 20. Rxd8
{[%clk 00:32:11]} {[%emt 00:01:49]} Rxd8 {[%clk 00:34:51]} {[%emt 00:00:02]} 21.
Rd1 {[%clk 00:27:15]} {[%emt 00:05:06]} Rxd1+ {[%clk 00:32:46]} {[%emt
00:02:15]} 22. Bxd1 {[%clk 00:25:23]} {[%emt 00:02:02]} Qa5 {[%clk 00:32:25]}
{[%emt 00:00:31]} 23. Qb2 {[%clk 00:24:16]} {[%emt 00:01:17]} 1/2-1/2

[Event "2. kolo JP družstev 2019/2020"]
[Site "Jesenik, Czech Republic"]
[Date "2019.10.19"]
[Round "1.3"]
[White "Sramko, Pavel JES_C"]
[Black "Valak, Josef SKO"]
[Result "0-1"]
[TimeControl "3600+10"]
[WhiteElo "1267"]
[BlackElo "1696"]

1. d4 {[%clk 01:00:06]} {[%emt 00:00:11]} d5 {[%clk 01:00:14]} {[%emt
00:00:06]} 2. Nf3 {[%clk 01:00:09]} {[%emt 00:00:07]} e6 {[%clk 00:59:34]}
{[%emt 00:00:48]} 3. Nc3 {[%clk 01:00:10]} {[%emt 00:00:11]} Nc6 {[%clk
00:58:41]} {[%emt 00:01:02]} 4. g3 {[%clk 00:59:35]} {[%emt 00:00:45]} Be7
{[%clk 00:58:33]} {[%emt 00:00:18]} 5. Bg2 {[%clk 00:59:34]} {[%emt 00:00:11]}
Bf6 {[%clk 00:57:08]} {[%emt 00:01:35]} 6. e3 {[%clk 00:59:21]} {[%emt
00:00:23]} Nge7 {[%clk 00:56:28]} {[%emt 00:00:50]} 7. b3 {[%clk 00:59:12]}
{[%emt 00:00:20]} a6 {[%clk 00:55:39]} {[%emt 00:00:57]} 8. O-O {[%clk
00:59:02]} {[%emt 00:00:21]} O-O {[%clk 00:54:57]} {[%emt 00:00:53]} 9. Ne2
{[%clk 00:56:55]} {[%emt 00:02:16]} b5 {[%clk 00:53:47]} {[%emt 00:01:21]} 10.
Ba3 {[%clk 00:56:57]} {[%emt 00:00:08]} b4 {[%clk 00:53:20]} {[%emt 00:00:37]}
11. Ne5 {[%clk 00:56:36]} {[%emt 00:00:31]} Bxe5 {[%clk 00:52:34]} {[%emt
00:00:55]} 12. dxe5 {[%clk 00:56:42]} {[%emt 00:00:03]} bxa3 {[%emt 00:01:25]}
0-1

[Event "2. kolo JP družstev 2019/2020"]
[Site "Jesenik, Czech Republic"]
[Date "2019.10.19"]
[Round "1.4"]
[White "Hlasny, Karel SKO"]
[Black "Suchanek, Zdenek JES_C"]
[Result "1-0"]
[TimeControl "3600+10"]
[WhiteElo "1000"]
[BlackElo "1000"]

1. d4 {[%clk 01:00:10]} {[%emt 00:00:07]} e6 {[%clk 01:00:09]} {[%emt
00:00:12]} 2. e4 {[%clk 01:00:09]} {[%emt 00:00:12]} d6 {[%clk 00:59:57]}
{[%emt 00:00:23]} 3. Nc3 {[%clk 00:59:57]} {[%emt 00:00:21]} a6 {[%clk
01:00:05]} {[%emt 00:00:04]} 4. Nf3 {[%clk 00:59:37]} {[%emt 00:00:29]} h6
{[%clk 01:00:07]} {[%emt 00:00:07]} 5. Be2 {[%clk 00:59:04]} {[%emt 00:00:44]}
Ne7 {[%clk 00:59:35]} {[%emt 00:00:42]} 6. O-O {[%clk 00:58:04]} {[%emt
00:01:10]} Ng6 {[%clk 00:59:32]} {[%emt 00:00:13]} 7. a3 {[%clk 00:56:59]}
{[%emt 00:01:15]} b6 {[%clk 00:59:22]} {[%emt 00:00:19]} 8. e5 {[%clk
00:56:05]} {[%emt 00:01:04]} d5 {[%clk 00:59:25]} {[%emt 00:00:07]} 9. Be3
{[%clk 00:55:13]} {[%emt 00:01:03]} Be7 {[%clk 00:58:08]} {[%emt 00:01:27]} 10.
Qd3 {[%clk 00:53:40]} {[%emt 00:01:43]} Bb7 {[%clk 00:56:55]} {[%emt 00:01:23]}
11. b4 {[%clk 00:53:11]} {[%emt 00:00:39]} Bc6 {[%clk 00:55:48]} {[%emt
00:01:17]} 12. Nd2 {[%clk 00:51:40]} {[%emt 00:01:41]} Qd7 {[%clk 00:55:13]}
{[%emt 00:00:45]} 13. Bh5 {[%clk 00:49:47]} {[%emt 00:02:03]} Nf8 {[%clk
00:54:01]} {[%emt 00:01:22]} 14. Nb3 {[%clk 00:48:55]} {[%emt 00:01:02]} g6
{[%clk 00:53:51]} {[%emt 00:00:19]} 15. Be2 {[%clk 00:47:55]} {[%emt 00:01:11]}
Qd8 {[%clk 00:51:49]} {[%emt 00:02:12]} 16. Qd2 {[%clk 00:47:04]} {[%emt
00:01:00]} g5 {[%clk 00:47:06]} {[%emt 00:04:53]} 17. b5 {[%clk 00:46:56]}
{[%emt 00:00:19]} Bb7 {[%clk 00:46:35]} {[%emt 00:00:41]} 18. a4 {[%clk
00:46:22]} {[%emt 00:00:44]} a5 {[%clk 00:46:42]} {[%emt 00:00:04]} 19. f4
{[%clk 00:46:15]} {[%emt 00:00:17]} gxf4 {[%clk 00:46:25]} {[%emt 00:00:25]} 20.
Bxf4 {[%clk 00:45:23]} {[%emt 00:01:02]} Ng6 {[%clk 00:46:33]} {[%emt
00:00:02]} 21. Bxh6 {[%clk 00:44:06]} {[%emt 00:01:29]} Bb4 {[%clk 00:46:10]}
{[%emt 00:00:32]} 22. Rf3 {[%clk 00:42:37]} {[%emt 00:01:39]} Bxc3 {[%clk
00:46:08]} {[%emt 00:00:10]} 23. Rxc3 {[%clk 00:42:44]} {[%emt 00:00:04]} Qe7
{[%clk 00:44:47]} {[%emt 00:01:31]} 24. Rf1 {[%clk 00:40:08]} {[%emt 00:02:46]}
Nd7 {[%clk 00:44:52]} {[%emt 00:00:05]} 25. Rxc7 {[%clk 00:40:04]} {[%emt
00:00:14]} Bc8 {[%clk 00:42:10]} {[%emt 00:02:51]} 26. Bg5 {[%clk 00:35:42]}
{[%emt 00:04:32]} Qf8 {[%clk 00:42:03]} {[%emt 00:00:17]} 27. Bd3 {[%clk
00:35:14]} {[%emt 00:00:38]} Qg8 {[%clk 00:41:49]} {[%emt 00:00:39]} 28. Bxg6
{[%clk 00:31:32]} {[%emt 00:03:57]} Qxg6 {[%clk 00:41:26]} {[%emt 00:00:34]} 29.
Rc3 {[%clk 00:31:32]} {[%emt 00:00:09]} Ra7 {[%clk 00:40:26]} {[%emt 00:01:11]}
30. Rg3 {[%clk 00:29:49]} {[%emt 00:01:53]} Qe4 {[%clk 00:36:12]} {[%emt
00:04:24]} 31. Qf2 {[%clk 00:25:39]} {[%emt 00:04:20]} Qh7 {[%clk 00:35:55]}
{[%emt 00:00:25]} 32. Rh3 {[%clk 00:25:19]} {[%emt 00:00:31]} Qg8 {[%clk
00:36:03]} {[%emt 00:00:02]} 33. Rxh8 {[%clk 00:25:18]} {[%emt 00:00:12]} 1-0

[Event "2. kolo JP družstev 2019/2020"]
[Site "Jesenik, Czech Republic"]
[Date "2019.10.19"]
[Round "1.5"]
[White "Benda, Josef JES_C"]
[Black "Hutnik, Jan SKO"]
[Result "0-1"]
[TimeControl "3600+10"]
[WhiteElo "1000"]
[BlackElo "1000"]

1. e3 {[%clk 01:00:16]} {[%emt 00:00:02]} e5 {[%clk 01:00:14]} {[%emt
00:00:08]} 2. Nf3 {[%clk 01:00:19]} {[%emt 00:00:07]} Nc6 {[%clk 01:00:20]}
{[%emt 00:00:04]} 3. c3 {[%clk 01:00:22]} {[%emt 00:00:06]} Nf6 {[%clk
01:00:24]} {[%emt 00:00:07]} 4. h3 {[%clk 01:00:11]} {[%emt 00:00:21]} Bd6
{[%clk 01:00:19]} {[%emt 00:00:14]} 5. g3 {[%clk 00:59:52]} {[%emt 00:00:30]}
O-O {[%clk 01:00:04]} {[%emt 00:00:24]} 6. Bg2 {[%clk 00:59:54]} {[%emt
00:00:08]} e4 {[%clk 00:59:47]} {[%emt 00:00:27]} 7. Nd4 {[%clk 00:59:34]}
{[%emt 00:00:30]} Ne5 {[%clk 00:58:19]} {[%emt 00:01:38]} 8. Qc2 {[%clk
00:58:26]} {[%emt 00:01:18]} Nd3+ {[%clk 00:56:39]} {[%emt 00:01:50]} 9. Kf1
{[%clk 00:57:36]} {[%emt 00:01:01]} b6 {[%clk 00:56:12]} {[%emt 00:00:34]} 10.
f3 {[%clk 00:55:52]} {[%emt 00:01:56]} Ba6 {[%clk 00:54:52]} {[%emt 00:01:30]}
11. c4 {[%clk 00:55:05]} {[%emt 00:00:57]} Bb7 {[%clk 00:52:33]} {[%emt
00:02:29]} 12. fxe4 {[%clk 00:52:22]} {[%emt 00:02:51]} Nxc1 {[%clk 00:51:51]}
{[%emt 00:00:55]} 13. Qxc1 {[%clk 00:51:04]} {[%emt 00:01:28]} Bxe4 {[%clk
00:51:50]} {[%emt 00:00:11]} 14. Rg1 {[%clk 00:45:44]} {[%emt 00:05:30]} Bxg2+
{[%clk 00:51:10]} {[%emt 00:00:49]} 15. Rxg2 {[%clk 00:45:18]} {[%emt
00:00:36]} Ne4 {[%clk 00:49:41]} {[%emt 00:01:39]} 16. g4 {[%clk 00:42:02]}
{[%emt 00:03:26]} Qf6+ {[%clk 00:48:06]} {[%emt 00:01:46]} 17. Kg1 {[%clk
00:38:50]} {[%emt 00:03:21]} Bg3 {[%clk 00:44:59]} {[%emt 00:03:17]} 18. Qf1
{[%clk 00:30:41]} {[%emt 00:08:19]} Qh4 {[%clk 00:42:36]} {[%emt 00:02:33]} 19.
Qf3 {[%clk 00:22:48]} {[%emt 00:08:03]} Rae8 {[%clk 00:37:42]} {[%emt
00:05:04]} 20. Ne2 {[%clk 00:21:40]} {[%emt 00:01:17]} Be1 {[%clk 00:33:40]}
{[%emt 00:04:13]} 21. Nbc3 {[%clk 00:18:46]} {[%emt 00:03:04]} Nxd2 {[%clk
00:33:23]} {[%emt 00:00:28]} 22. Ng3 {[%clk 00:17:25]} {[%emt 00:01:31]} Nxf3+
{[%clk 00:33:09]} {[%emt 00:00:24]} 23. Kh1 {[%clk 00:16:31]} {[%emt 00:01:03]}
Qxh3+ {[%clk 00:33:05]} {[%emt 00:00:13]} 24. Rh2 {[%clk 00:16:00]} {[%emt
00:00:26]} 0-1

[Event "2. kolo JP družstev 2019/2020"]
[Site "Jesenik, Czech Republic"]
[Date "2019.10.19"]
[Round "1.6"]
[White "Till, Eduard RET_C"]
[Black "Valicek, Martin JES_D"]
[Result "1-0"]
[TimeControl "3600+10"]
[WhiteElo "1617"]
[BlackElo "1390"]

1. Nf3 {[%clk 01:00:10]} {[%emt 00:13:03]} Nc6 {[%clk 01:00:10]} {[%emt
00:00:08]} 2. c4 {[%clk 00:59:14]} {[%emt 00:01:10]} e5 {[%clk 00:59:54]}
{[%emt 00:00:26]} 3. d3 {[%clk 00:59:10]} {[%emt 00:00:14]} d6 {[%clk
00:59:00]} {[%emt 00:01:03]} 4. g3 {[%clk 00:59:06]} {[%emt 00:00:14]} Bg4
{[%clk 00:57:55]} {[%emt 00:01:16]} 5. Bg2 {[%clk 00:58:53]} {[%emt 00:00:22]}
Bxf3 {[%clk 00:57:55]} {[%emt 00:00:10]} 6. Bxf3 {[%emt 00:00:04]} Qd7 {[%emt
00:00:19]} 7. Bg2 {[%clk 00:58:20]} {[%emt 00:00:20]} O-O-O {[%clk 00:57:51]}
{[%emt 00:00:15]} 8. O-O {[%clk 00:58:19]} {[%emt 00:00:10]} Nf6 {[%clk
00:57:40]} {[%emt 00:00:22]} 9. a3 {[%clk 00:58:17]} {[%emt 00:00:13]} d5
{[%clk 00:57:36]} {[%emt 00:00:13]} 10. b3 {[%clk 00:58:10]} {[%emt 00:00:18]}
dxc4 {[%clk 00:57:14]} {[%emt 00:00:31]} 11. bxc4 {[%clk 00:58:01]} {[%emt
00:00:19]} e4 {[%clk 00:56:58]} {[%emt 00:00:26]} 12. Be3 {[%emt 00:05:12]}
exd3 {[%emt 00:00:30]} 13. exd3 {[%clk 00:51:55]} {[%emt 00:00:33]} Qxd3 {[%clk
00:56:59]} {[%emt 00:00:10]} 14. Qa4 {[%clk 00:51:36]} {[%emt 00:00:28]} Ne4
{[%clk 00:54:04]} {[%emt 00:03:06]} 15. Bxa7 {[%clk 00:49:36]} {[%emt
00:02:10]} Nxa7 {[%clk 00:52:50]} {[%emt 00:01:24]} 16. Qxa7 {[%clk 00:49:21]}
{[%emt 00:00:25]} Qxc4 {[%clk 00:50:35]} {[%emt 00:02:25]} 17. Qa8+ {[%clk
00:46:50]} {[%emt 00:02:39]} Kd7 {[%clk 00:50:40]} {[%emt 00:00:07]} 18. Qxb7
{[%clk 00:46:03]} {[%emt 00:00:57]} Nd6 {[%clk 00:50:09]} {[%emt 00:00:41]} 19.
Qf3 {[%clk 00:43:48]} {[%emt 00:02:21]} g6 {[%clk 00:49:44]} {[%emt 00:00:39]}
20. Nd2 {[%clk 00:43:32]} {[%emt 00:00:25]} Qa6 {[%clk 00:48:08]} {[%emt
00:01:46]} 21. Ne4 {[%clk 00:42:23]} {[%emt 00:01:19]} f5 {[%clk 00:47:18]}
{[%emt 00:01:00]} 22. Nc5+ {[%clk 00:40:45]} {[%emt 00:00:16]} 1-0

[Event "2. kolo JP družstev 2019/2020"]
[Site "Jesenik, Czech Republic"]
[Date "2019.10.19"]
[Round "1.7"]
[White "Dockal, Karel ml. JES_D"]
[Black "Basler, Jan RET_C"]
[Result "0-1"]
[TimeControl "3600+10"]
[WhiteElo "1405"]
[BlackElo "1277"]

1. d4 {[%clk 01:00:18]} {[%emt 00:00:01]} d5 {[%clk 01:00:15]} {[%emt
00:00:05]} 2. c4 {[%clk 01:00:24]} {[%emt 00:00:05]} e6 {[%clk 01:00:21]}
{[%emt 00:00:04]} 3. Nc3 {[%clk 01:00:29]} {[%emt 00:00:04]} Nf6 {[%clk
01:00:10]} {[%emt 00:00:21]} 4. Bg5 {[%clk 01:00:36]} {[%emt 00:00:03]} h6
{[%clk 01:00:08]} {[%emt 00:00:12]} 5. Bxf6 {[%clk 01:00:39]} {[%emt 00:00:07]}
Qxf6 {[%clk 01:00:11]} {[%emt 00:00:07]} 6. e3 {[%clk 01:00:42]} {[%emt
00:00:07]} Bb4 {[%clk 01:00:12]} {[%emt 00:00:09]} 7. Qa4+ {[%clk 01:00:47]}
{[%emt 00:00:05]} Nc6 {[%clk 01:00:04]} {[%emt 00:00:19]} 8. cxd5 {[%clk
01:00:43]} {[%emt 00:00:13]} exd5 {[%clk 01:00:01]} {[%emt 00:00:13]} 9. Bb5
{[%clk 01:00:48]} {[%emt 00:00:03]} Bxc3+ {[%clk 00:59:33]} {[%emt 00:00:40]}
10. bxc3 {[%clk 01:00:52]} {[%emt 00:00:05]} Bd7 {[%clk 00:59:27]} {[%emt
00:00:16]} 11. Nf3 {[%clk 01:00:38]} {[%emt 00:00:24]} O-O {[%clk 00:59:32]}
{[%emt 00:00:07]} 12. O-O {[%clk 01:00:39]} {[%emt 00:00:07]} a6 {[%clk
00:59:33]} {[%emt 00:00:10]} 13. Bxc6 {[%clk 01:00:09]} {[%emt 00:00:41]} Bxc6
{[%clk 00:59:37]} {[%emt 00:00:05]} 14. Qc2 {[%clk 01:00:10]} {[%emt 00:00:07]}
Bd7 {[%clk 00:58:55]} {[%emt 00:00:54]} 15. Ne5 {[%clk 00:59:32]} {[%emt
00:00:33]} Bf5 {[%clk 00:58:49]} {[%emt 00:00:30]} 16. Qb3 {[%clk 00:58:59]}
{[%emt 00:00:38]} Qg5 {[%clk 00:58:23]} {[%emt 00:00:40]} 17. f4 {[%clk
00:58:04]} {[%emt 00:01:06]} Qh5 {[%clk 00:56:10]} {[%emt 00:02:21]} 18. Qxd5
{[%clk 00:57:31]} {[%emt 00:00:46]} c6 {[%clk 00:55:18]} {[%emt 00:00:57]} 19.
Qf3 {[%clk 00:56:53]} {[%emt 00:00:52]} Qxf3 {[%clk 00:54:59]} {[%emt
00:00:30]} 20. Rxf3 {[%clk 00:56:54]} {[%emt 00:00:10]} Rfe8 {[%clk 00:54:43]}
{[%emt 00:00:24]} 21. Rb1 {[%clk 00:56:59]} {[%emt 00:00:06]} Bxb1 {[%clk
00:54:43]} {[%emt 00:00:10]} 22. a4 {[%clk 00:56:21]} {[%emt 00:00:49]} Be4
{[%clk 00:54:33]} {[%emt 00:00:19]} 23. Rg3 {[%clk 00:56:22]} {[%emt 00:00:09]}
Bf5 {[%clk 00:54:19]} {[%emt 00:00:24]} 24. Nc4 {[%clk 00:56:24]} {[%emt
00:00:09]} b5 {[%clk 00:54:07]} {[%emt 00:00:20]} 25. Nd6 {[%clk 00:56:29]}
{[%emt 00:00:06]} Bg6 {[%clk 00:53:12]} {[%emt 00:01:06]} 26. Nxe8 {[%clk
00:56:30]} {[%emt 00:00:08]} Rxe8 {[%clk 00:53:18]} {[%emt 00:00:04]} 27. axb5
{[%clk 00:56:37]} {[%emt 00:00:03]} axb5 {[%clk 00:53:21]} {[%emt 00:00:08]} 28.
Kf2 {[%emt 00:00:02]} Ra8 {[%emt 00:00:59]} 29. Kf3 {[%emt 00:00:09]} Ra3
{[%emt 00:00:18]} 30. h4 {[%emt 00:00:33]} Rxc3 {[%emt 00:00:08]} 31. Rh3
{[%clk 00:54:22]} {[%emt 00:00:13]} Bf5 {[%clk 00:53:03]} {[%emt 00:00:30]} 32.
g4 {[%clk 00:54:27]} {[%emt 00:00:06]} Be6 {[%clk 00:52:52]} {[%emt 00:00:19]}
33. f5 {[%clk 00:54:26]} {[%emt 00:00:13]} Bd5+ {[%clk 00:52:52]} {[%emt
00:00:09]} 34. Kf4 {[%clk 00:54:27]} {[%emt 00:00:07]} b4 {[%clk 00:52:55]}
{[%emt 00:00:10]} 35. g5 {[%clk 00:54:28]} {[%emt 00:00:09]} hxg5+ {[%clk
00:52:37]} {[%emt 00:00:28]} 36. hxg5 {[%clk 00:54:32]} {[%emt 00:00:06]} b3
{[%clk 00:52:29]} {[%emt 00:00:18]} 37. Rh2 {[%clk 00:54:35]} {[%emt 00:00:05]}
Rc2 {[%clk 00:52:35]} {[%emt 00:00:06]} 38. Rh3 {[%clk 00:54:02]} {[%emt
00:00:42]} b2 {[%clk 00:52:38]} {[%emt 00:00:08]} 39. e4 {[%clk 00:54:06]}
{[%emt 00:00:05]} b1=Q {[%clk 00:52:28]} {[%emt 00:00:20]} 40. exd5 {[%clk
00:54:13]} {[%emt 00:00:04]} cxd5 {[%clk 00:52:34]} {[%emt 00:00:04]} 0-1

[Event "2. kolo JP družstev 2019/2020"]
[Site "Jesenik, Czech Republic"]
[Date "2019.10.19"]
[Round "1.8"]
[White "Pirek, David RET_C"]
[Black "Haidenko, Mykola JES_D"]
[Result "1-0"]
[TimeControl "3600+10"]
[WhiteElo "1092"]
[BlackElo "1305"]

1. e4 {[%clk 01:00:19]} {[%emt 00:00:01]} e5 {[%clk 01:00:13]} {[%emt
00:00:08]} 2. Nf3 {[%clk 01:00:12]} {[%emt 00:00:16]} Nc6 {[%clk 01:00:15]}
{[%emt 00:00:08]} 3. Nc3 {[%clk 01:00:15]} {[%emt 00:00:08]} Nf6 {[%clk
01:00:19]} {[%emt 00:00:06]} 4. Bc4 {[%clk 01:00:14]} {[%emt 00:00:10]} Bb4
{[%clk 01:00:18]} {[%emt 00:00:11]} 5. O-O {[%clk 01:00:04]} {[%emt 00:00:20]}
O-O {[%clk 01:00:19]} {[%emt 00:00:09]} 6. d3 {[%clk 01:00:10]} {[%emt
00:00:05]} Bxc3 {[%clk 01:00:20]} {[%emt 00:00:08]} 7. bxc3 {[%emt 00:00:06]}
d5 {[%clk 01:00:22]} {[%emt 00:00:06]} 8. Bb5 {[%clk 00:59:51]} {[%emt
00:00:35]} Bg4 {[%clk 01:00:11]} {[%emt 00:00:21]} 9. Bxc6 {[%clk 00:59:42]}
{[%emt 00:00:19]} bxc6 {[%clk 01:00:11]} {[%emt 00:00:10]} 10. c4 {[%clk
00:59:43]} {[%emt 00:00:10]} dxe4 {[%clk 01:00:14]} {[%emt 00:00:06]} 11. dxe4
{[%clk 00:59:30]} {[%emt 00:00:19]} Qxd1 {[%clk 01:00:16]} {[%emt 00:00:12]} 12.
Rxd1 {[%clk 00:59:34]} {[%emt 00:00:06]} Bxf3 {[%clk 01:00:21]} {[%emt
00:00:05]} 13. gxf3 {[%clk 00:59:20]} {[%emt 00:00:22]} Rfd8 {[%clk 01:00:01]}
{[%emt 00:00:32]} 14. Rxd8+ {[%clk 00:59:18]} {[%emt 00:00:12]} Rxd8 {[%clk
00:59:58]} {[%emt 00:00:13]} 15. Bg5 {[%clk 00:59:09]} {[%emt 00:00:18]} Rd6
{[%clk 00:59:46]} {[%emt 00:00:24]} 16. c5 {[%clk 00:59:06]} {[%emt 00:00:13]}
Rd2 {[%clk 00:59:42]} {[%emt 00:00:13]} 17. Bxd2 {[%clk 00:59:07]} {[%emt
00:00:10]} Nd7 {[%clk 00:59:06]} {[%emt 00:00:45]} 18. Rb1 {[%clk 00:59:01]}
{[%emt 00:00:10]} a6 {[%clk 00:58:55]} {[%emt 00:00:26]} 19. Rb7 {[%clk
00:59:02]} {[%emt 00:00:11]} h6 {[%clk 00:58:52]} {[%emt 00:00:12]} 20. Rxc7
{[%clk 00:59:03]} {[%emt 00:00:09]} Nxc5 {[%clk 00:58:55]} {[%emt 00:00:06]} 21.
Rxc6 {[%clk 00:59:04]} {[%emt 00:00:09]} Nd7 {[%clk 00:57:12]} {[%emt
00:01:54]} 22. Rxa6 {[%clk 00:59:04]} {[%emt 00:00:10]} Kf8 {[%clk 00:56:40]}
{[%emt 00:00:42]} 23. Bb4+ {[%clk 00:58:59]} {[%emt 00:00:15]} Ke8 {[%clk
00:56:36]} {[%emt 00:00:14]} 24. Ra8+ {[%clk 00:58:58]} {[%emt 00:00:10]} 1-0